[Event "DFMMLV 2024"]
[Site "Braunfels"]
[Date "2024.06.01"]
[Round "4.29"]
[White "Guder, Sibylle"]
[Black "Tobianski, Karina"]
[Result "1-0"]
[ECO "D48"]
[WhiteElo "1933"]
[BlackElo "1816"]
[Annotator "NA RC"]
[PlyCount "139"]
[EventDate "2024.05.30"]
[EventType "team-tourn"]
[EventCountry "GER"]
[SourceTitle "playchess.com"]
[Source "ChessBase"]
[SourceQuality "1"]
[TimeControl "40/5400+30:1800+30"]

1. Nf3 {[%emt 0:00:04]} d5 {[%emt 0:00:21]} 2. e3 {[%emt 0:00:18]} Nf6 {[%emt 0:00:17]} 3. c4 {[%emt 0:00:23]} dxc4 {[%emt 0:02:45]} 4. Bxc4 {[%emt 0:06:23]} e6 {[%emt 0:00:21]} 5. O-O {[%emt 0:01:52]} a6 {[%emt 0:00:53]} 6. d4 {[%emt 0:04:28]} b5 {[%emt 0:01:29]} 7. Bd3 {[%emt 0:01:25]} Bb7 {[%emt 0:00:31]} 8. Nc3 {[%emt 0:04:06]} Nbd7 {[%emt 0:01:16]} 9. b3 {[%emt 0:10:17]} c5 {[%emt 0:02:53]} 10. Bb2 {[%emt 0:06:20]} Bd6 {[%emt 0:03:47] D48: Semi-Slav: Meran System: 7...b5 8 Bd3 a6.} 11. Rc1 {[%emt 0:02:18]} O-O {[%emt 0:04:44]} 12. Ne2 {[%emt 0:05:46]} Bxf3 {[%emt 0:10:57]} 13. gxf3 {[%emt 0:00:06]} cxd4 {[%emt 0:03:55]} 14. Nxd4 {[%emt 0:05:23]} Nd5 {[%emt 0:04:55]} 15. f4 {[%emt 0:06:38]} Nxf4 {[%emt 0:24:45]} 16. exf4 {[%emt 0:02:47]} Bxf4 {[%emt 0:00:14]} 17. Qg4 {[%emt 0:05:33]} Ne5 {[%emt 0:16:31]} 18. Bxh7+ {[%emt 0:03:40]} Kxh7 {[%emt 0:01:04]} 19. Qxf4 {[%emt 0:00:21]} Ng6 {[%emt 0:01:29]} 20. Qg3 {[%emt 0:02:45]} Qh4 {[%emt 0:04:47]} 21. Nf3 {[%emt 0:03:55]} Qxg3+ {[%emt 0:01:27]} 22. hxg3 {[%emt 0:00:47]} f6 {[%emt 0:00:30]} 23. Rc7 {[%emt 0:02:47]} e5 {[%emt 0:01:35]} 24. Rd1 {[%emt 0:04:02]} Rfd8 {[%emt 0:00:33]} 25. Rdc1 {[%emt 0:05:27]} Rd3 {[%emt 0:02:36]} 26. Kg2 {[%emt 0:02:44]} Nf8 $18 {[%emt 0:01:55]} 27. Nh4 {[%emt 0:04:23]} Rd2 {[%emt 0:01:22]} 28. R1c2 {[%emt 0:01:34]} Rxc2 {[%emt 0:00:47]} 29. Rxc2 {[%emt 0:00:05]} Ne6 {[%emt 0:00:52]} 30. Nf5 {[%emt 0:01:01]} Ra7 {[%emt 0:00:41]} 31. Bc1 {[%emt 0:03:20]} Kg6 {[%emt 0:00:25]} 32. Nh4+ {[%emt 0:00:38]} Kf7 {[%emt 0:00:33]} 33. Be3 {[%emt 0:00:10]} Rd7 {[%emt 0:01:02]} 34. Nf5 {[%emt 0:01:34]} g6 {[%emt 0:01:04]} 35. Nh6+ {[%emt 0:00:22]} Kg7 {[%emt 0:00:32]} 36. Ng4 {[%emt 0:00:09]} e4 {[%emt 0:01:16]} 37. Rd2 {[%emt 0:00:34]} Rxd2 {[%emt 0:00:48]} 38. Bxd2 {[%emt 0:00:05]} f5 {[%emt 0:00:30]} 39. Bc3+ {[%emt 0:00:37]} Kf7 {[%emt 0:00:39]} 40. Ne5+ {[%emt 0:01:03]} Kf6 {[%emt 0:01:03]} 41. Nd7+ {[%emt 0:05:23]} Ke7 {[%emt 0:00:28]} 42. Nb8 {[%emt 0:04:47]} g5 {[%emt 0:02:43]} 43. Nxa6 {[%emt 0:02:28]} f4 {[%emt 0:00:22]} 44. Nb4 {[%emt 0:01:03]} Kd6 {[%emt 0:00:51]} 45. Nc2 {[%emt 0:02:19]} Kd5 {[%emt 0:00:41]} 46. Bd2 {[%emt 0:02:34]} Kc5 {[%emt 0:01:59]} 47. Kh3 {[%emt 0:02:31]} Kd5 {[%emt 0:04:43]} 48. Kg4 {[%emt 0:02:39]} e3 {[%emt 0:00:49]} 49. fxe3 {[%emt 0:01:05]} fxg3 {[%emt 0:00:19]} 50. Kxg3 {[%emt 0:00:18]} Ke4 {[%emt 0:00:15]} 51. Ne1 {[%emt 0:02:11]} Kf5 {[%emt 0:02:11]} 52. a4 {[%emt 0:01:48]} bxa4 {[%emt 0:00:29]} 53. bxa4 {[%emt 0:00:07]} Nc5 {[%emt 0:01:53]} 54. a5 {[%emt 0:05:28]} Ne4+ {[%emt 0:00:59]} 55. Kg2 {[%emt 0:00:14]} Nxd2 {[%emt 0:00:15]} 56. a6 {[%emt 0:00:25]} Nc4 {[%emt 0:00:15]} 57. a7 {[%emt 0:00:18]} Nb6 {[%emt 0:00:12]} 58. Kf3 {[%emt 0:01:31]} g4+ {[%emt 0:00:55]} 59. Kg3 {[%emt 0:00:25]} Ke4 {[%emt 0:05:31]} 60. Nc2 {[%emt 0:01:30]} Ke5 {[%emt 0:02:17]} 61. Kxg4 {[%emt 0:01:36]} Kd6 {[%emt 0:00:59]} 62. Nb4 {[%emt 0:00:55]} Na8 {[%emt 0:02:32]} 63. e4 {[%emt 0:00:15]} Kc7 {[%emt 0:02:16]} 64. Nd5+ {[%emt 0:00:10]} Kb7 {[%emt 0:01:34]} 65. e5 {[%emt 0:00:08]} Kc6 {[%emt 0:01:59]} 66. e6 {[%emt 0:01:04]} Kd6 {[%emt 0:02:31]} 67. e7 {[%emt 0:00:18]} Kd7 {[%emt 0:00:53]} 68. Kf5 {[%emt 0:00:19]} Ke8 {[%emt 0:00:42]} 69. Kf6 {[%emt 0:00:11]} Kd7 {[%emt 0:00:24]} 70. Kf7 {[%emt 0:00:14]} 1-0

[Event "DFMMLV 2024"]
[Site "Braunfels"]
[Date "2024.06.01"]
[Round "4.30"]
[White "Darvish Ghane, Luisa Marie"]
[Black "Mazurtsova, Margarita"]
[Result "1/2-1/2"]
[ECO "C01"]
[WhiteElo "1810"]
[BlackElo "1779"]
[Annotator "NA RC"]
[PlyCount "113"]
[EventDate "2024.05.30"]
[EventType "team-tourn"]
[EventCountry "GER"]
[SourceTitle "playchess.com"]
[Source "ChessBase"]
[SourceQuality "1"]
[TimeControl "40/5400+30:1800+30"]

1. e4 {[%emt 0:00:01]} e6 {[%emt 0:00:45]} 2. d4 {[%emt 0:00:05]} d5 {[%emt 0:00:39]} 3. exd5 {[%emt 0:00:06]} exd5 {[%emt 0:00:40]} 4. Nf3 {[%emt 0:00:24]} Bd6 {[%emt 0:00:30]} 5. Bd3 {[%emt 0:00:45]} Ne7 {[%emt 0:00:18]} 6. O-O {[%emt 0:00:56]} O-O {[%emt 0:00:31]} 7. Re1 {[%emt 0:03:00]} Nf5 {[%emt 0:02:13]} 8. c3 {[%emt 0:02:32]} c6 {[%emt 0:00:18]} 9. Qc2 {[%emt 0:01:16]} g6 {[%emt 0:03:06]} 10. Nbd2 {[%emt 0:08:11]} Re8 {[%emt 0:03:37]} 11. Rxe8+ {[%emt 0:03:45]} Qxe8 {[%emt 0:00:13]} 12. Nf1 {[%emt 0:03:48]} Be6 {[%emt 0:01:22]} 13. Ne3 {[%emt 0:01:13]} Nxe3 {[%emt 0:01:30]} 14. Bxe3 {[%emt 0:00:21]} Nd7 {[%emt 0:00:20]} 15. Re1 {[%emt 0:03:41]} Qb8 {[%emt 0:03:32]} 16. h4 {[%emt 0:02:15]} Nf6 {[%emt 0:02:11]} 17. Bg5 {[%emt 0:03:15]} Kg7 {[%emt 0:03:05]} 18. Bxf6+ {[%emt 0:03:10]} Kxf6 {[%emt 0:00:15]} 19. Ng5 {[%emt 0:04:08]} Qg8 {[%emt 0:00:46]} 20. Qd2 {[%emt 0:11:11]} Kg7 {[%emt 0:04:39]} 21. h5 {[%emt 0:03:31]} Re8 {[%emt 0:03:13]} 22. Nxe6+ {[%emt 0:08:01]} Rxe6 {[%emt 0:00:41]} 23. Rxe6 {[%emt 0:00:10]} fxe6 {[%emt 0:00:25]} 24. Qg5 {[%emt 0:00:25]} Qf7 {[%emt 0:04:41]} 25. h6+ {[%emt 0:10:00]} Kg8 {[%emt 0:00:15]} 26. Qd8+ {[%emt 0:02:39]} Bf8 {[%emt 0:00:18]} 27. Qb8 {[%emt 0:01:52]} a6 {[%emt 0:01:03]} 28. f4 {[%emt 0:03:57]} Qe7 {[%emt 0:03:00]} 29. g3 {[%emt 0:01:56]} Kf7 {[%emt 0:03:43]} 30. Kg2 {[%emt 0:02:42]} Qd7 {[%emt 0:12:22]} 31. Kf3 {[%emt 0:08:38]} a5 {[%emt 0:02:13]} 32. g4 {[%emt 0:01:44]} b5 {[%emt 0:01:47]} 33. g5 {[%emt 0:00:48]} Qd6 {[%emt 0:08:55]} 34. Qa7+ {[%emt 0:01:48]} Be7 {[%emt 0:00:09]} 35. Qxa5 {[%emt 0:00:49]} Qb8 {[%emt 0:02:12]} 36. b4 {[%emt 0:02:21]} Bd6 {[%emt 0:00:34]} 37. a4 {[%emt 0:01:12]} Bxf4 {[%emt 0:00:51]} 38. axb5 {[%emt 0:01:30]} Bxg5 {[%emt 0:01:06]} 39. b6 {[%emt 0:00:43]} Qf4+ {[%emt 0:00:07]} 40. Kg2 {[%emt 0:01:01]} Qd2+ {[%emt 0:00:32]} 41. Kh1 {[%emt 0:01:21]} Qd1+ {[%emt 0:00:54]} 42. Kg2 {[%emt 0:00:40]} Qg4+ {[%emt 0:00:13]} 43. Kf1 {[%emt 0:03:44]} Qf3+ {[%emt 0:00:13]} 44. Ke1 {[%emt 0:04:28]} Qe3+ {[%emt 0:01:31]} 45. Be2 {[%emt 0:02:18]} Qxc3+ {[%emt 0:00:42]} 46. Kf1 {[%emt 0:02:00]} Qh3+ {[%emt 0:01:25]} 47. Ke1 {[%emt 0:01:56]} Qh1+ {[%emt 0:09:38]} 48. Kf2 {[%emt 0:06:36]} Qh2+ {[%emt 0:05:42]} 49. Kf1 {[%emt 0:01:38]} Be3 {[%emt 0:05:10]} 50. Qa7+ {[%emt 0:01:55]} Kf6 {[%emt 0:05:40]} 51. Qg7+ {[%emt 0:01:28]} Kg5 {[%emt 0:00:53]} 52. Qe7+ {[%emt 0:02:26]} Kxh6 {[%emt 0:01:28]} 53. Qf8+ {[%emt 0:00:23]} Kg5 {[%emt 0:00:24]} 54. Qe7+ {[%emt 0:00:21]} Kh6 {[%emt 0:03:03]} 55. Qf8+ {[%emt 0:00:13]} Kg5 {[%emt 0:00:30]} 56. Qe7+ {[%emt 0:02:38]} Kh6 {[%emt 0:00:41]} 57. Qf8+ {[%emt 0:00:22]} 1/2-1/2

[Event "DFMMLV 2024"]
[Site "Braunfels"]
[Date "2024.06.01"]
[Round "4.31"]
[White "Bazzazi, Elnaz"]
[Black "Neumann, Ramona"]
[Result "1-0"]
[ECO "C00"]
[WhiteElo "1840"]
[BlackElo "1774"]
[Annotator "NA RC"]
[PlyCount "97"]
[EventDate "2024.05.30"]
[EventType "team-tourn"]
[EventCountry "GER"]
[SourceTitle "playchess.com"]
[Source "ChessBase"]
[SourceQuality "1"]
[TimeControl "40/5400+30:1800+30"]

1. e4 {[%emt 0:00:04]} e6 {[%emt 0:00:06]} 2. b3 {[%emt 0:00:11]} d5 {[%emt 0:01:13]} 3. Bb2 {[%emt 0:00:10]} dxe4 {[%emt 0:04:21]} 4. Nc3 {[%emt 0:00:12]} Nf6 {[%emt 0:01:14]} 5. g4 {[%emt 0:00:07]} h6 {[%emt 0:05:33]} 6. Bg2 {[%emt 0:01:01]} Nc6 {[%emt 0:06:25]} 7. Nxe4 {[%emt 0:00:50]} Bd7 {[%emt 0:03:14]} 8. Nxf6+ {[%emt 0:01:39]} gxf6 {[%emt 0:00:42]} 9. Qf3 {[%emt 0:07:39]} e5 {[%emt 0:11:06]} 10. O-O-O {[%emt 0:05:21]} Bd6 {[%emt 0:05:42]} 11. Ne2 {[%emt 0:03:00]} Qe7 {[%emt 0:02:35]} 12. Kb1 {[%emt 0:01:32]} O-O-O {[%emt 0:05:47]} 13. h3 {[%emt 0:01:41]} Rhe8 {[%emt 0:07:47]} 14. Ng3 {[%emt 0:05:01]} Qf8 {[%emt 0:21:43]} 15. Ne4 {[%emt 0:03:13]} Ba3 {[%emt 0:04:54]} 16. Nxf6 {[%emt 0:01:29]} Re6 {[%emt 0:01:35]} 17. Nxd7 {[%emt 0:02:14]} Rxd7 {[%emt 0:00:11]} 18. Rhe1 {[%emt 0:02:57]} Bxb2 {[%emt 0:00:34]} 19. Kxb2 {[%emt 0:00:21]} Qb4 {[%emt 0:01:06]} 20. Qc3 {[%emt 0:06:44]} Qxc3+ {[%emt 0:01:15]} 21. Kxc3 {[%emt 0:02:01]} Ne7 {[%emt 0:01:34]} 22. Be4 {[%emt 0:03:15]} Nd5+ {[%emt 0:02:36]} 23. Kb2 {[%emt 0:00:03]} Ne7 {[%emt 0:01:16]} 24. Re3 {[%emt 0:02:39]} Rf6 {[%emt 0:01:38]} 25. Rf3 {[%emt 0:02:17]} Rdd6 {[%emt 0:00:22]} 26. Rxf6 {[%emt 0:02:16]} Rxf6 {[%emt 0:00:07]} 27. f3 {[%emt 0:00:31]} Rf4 {[%emt 0:01:00]} 28. d4 {[%emt 0:02:15]} exd4 {[%emt 0:01:10]} 29. Rxd4 {[%emt 0:00:30]} Rf6 {[%emt 0:01:36]} 30. Kc3 {[%emt 0:03:47]} b6 {[%emt 0:00:56]} 31. Kd2 {[%emt 0:02:34]} c5 {[%emt 0:00:50]} 32. Rd3 {[%emt 0:00:57]} a5 {[%emt 0:00:39]} 33. a4 {[%emt 0:02:06]} Kc7 {[%emt 0:00:10]} 34. Ke3 {[%emt 0:01:28]} Nc8 {[%emt 0:00:40]} 35. f4 {[%emt 0:07:36]} Nd6 {[%emt 0:00:34]} 36. Bd5 {[%emt 0:01:27]} Rg6 {[%emt 0:00:56]} 37. Kf3 {[%emt 0:02:06]} f5 {[%emt 0:02:43]} 38. Re3 {[%emt 0:02:59]} fxg4+ {[%emt 0:00:33]} 39. hxg4 {[%emt 0:00:21]} Kd7 {[%emt 0:00:33]} 40. f5 {[%emt 0:02:47]} Rf6 {[%emt 0:01:48]} 41. Kf4 {[%emt 0:34:12]} Rf8 {[%emt 0:02:57]} 42. Re6 {[%emt 0:00:00]} h5 {[%emt 0:03:40]} 43. f6 {[%emt 0:00:00]} hxg4 {[%emt 0:06:44]} 44. Kxg4 {[%emt 0:00:00]} Ne8 {[%emt 0:02:22]} 45. Kg5 {[%emt 0:00:00]} Rg8+ {[%emt 0:04:14]} 46. Kf4 {[%emt 0:00:00]} Rf8 {[%emt 0:00:12]} 47. Ke5 {[%emt 0:00:00]} Kc7 {[%emt 0:02:09]} 48. f7 {[%emt 0:00:00]} Ng7 {[%emt 0:01:24]} 49. Rg6 {[%emt 0:00:00]} 1-0

[Event "DFMMLV 2024"]
[Site "Braunfels"]
[Date "2024.06.01"]
[Round "4.33"]
[White "Rieping, Lea"]
[Black "Pavlov, Liliane"]
[Result "1-0"]
[ECO "A45"]
[WhiteElo "1966"]
[BlackElo "1846"]
[Annotator "RC"]
[PlyCount "69"]
[EventDate "2024.05.30"]
[EventType "team-tourn"]
[EventCountry "GER"]
[SourceTitle "playchess.com"]
[Source "ChessBase"]
[SourceQuality "1"]
[TimeControl "40/5400+30:1800+30"]

1. d4 {[%emt 0:00:04]} Nf6 {[%emt 0:00:08]} 2. Nc3 {[%emt 0:00:11]} e6 {[%emt 0:00:21]} 3. Bf4 {[%emt 0:05:47]} Bb4 {[%emt 0:02:58]} 4. a3 {[%emt 0:10:31]} Ba5 {[%emt 0:03:20]} 5. b4 {[%emt 0:02:14]} Bb6 {[%emt 0:00:20]} 6. e4 {[%emt 0:05:33]} d5 {[%emt 0:02:49]} 7. e5 {[%emt 0:00:20]} Nfd7 {[%emt 0:01:10]} 8. Nf3 {[%emt 0:02:27]} Nc6 {[%emt 0:01:01]} 9. Na4 {[%emt 0:10:59]} Ne7 {[%emt 0:02:04]} 10. Bd3 {[%emt 0:02:51]} Ng6 {[%emt 0:02:43]} 11. Bg3 {[%emt 0:02:58]} a6 {[%emt 0:02:41]} 12. h4 {[%emt 0:10:47]} Ba7 {[%emt 0:04:41]} 13. h5 {[%emt 0:02:54]} Ne7 {[%emt 0:00:30]} 14. h6 {[%emt 0:01:00]} g6 {[%emt 0:00:45]} 15. Bh4 {[%emt 0:00:08]} O-O {[%emt 0:01:44]} 16. Qd2 {[%emt 0:03:11]} Qe8 {[%emt 0:02:03]} 17. Nc5 {[%emt 0:02:09]} Bxc5 {[%emt 0:05:20]} 18. bxc5 {[%emt 0:00:08]} Nf5 {[%emt 0:01:56]} 19. Bxf5 {[%emt 0:02:36]} exf5 {[%emt 0:00:12]} 20. O-O {[%emt 0:00:27]} Qe6 {[%emt 0:04:37]} 21. Rfe1 {[%emt 0:01:41]} Re8 {[%emt 0:00:50]} 22. Re2 {[%emt 0:06:33]} b6 {[%emt 0:01:56]} 23. Rae1 {[%emt 0:04:09]} Nf8 {[%emt 0:06:03]} 24. cxb6 {[%emt 0:03:00]} Qxb6 {[%emt 0:00:48]} 25. Qg5 {[%emt 0:00:13]} Re6 {[%emt 0:01:28]} 26. c4 {[%emt 0:03:08]} Bb7 {[%emt 0:01:30]} 27. c5 {[%emt 0:00:24]} Qa5 {[%emt 0:01:14]} 28. Rb1 {[%emt 0:01:14]} Bc6 {[%emt 0:00:41]} 29. Reb2 {[%emt 0:01:57]} Bb5 {[%emt 0:01:12]} 30. Rb3 {[%emt 0:01:08]} Nd7 {[%emt 0:03:40]} 31. g4 {[%emt 0:03:36]} fxg4 {[%emt 0:08:26]} 32. Qxg4 {[%emt 0:00:05]} Be2 {[%emt 0:01:04]} 33. Qf4 {[%emt 0:03:32]} Bxf3 {[%emt 0:00:16]} 34. Rxf3 {[%emt 0:00:04]} Rf8 {[%emt 0:00:14]} 35. c6 {[%emt 0:01:41]} 1-0

[Event "DFMMLV 2024"]
[Site "Braunfels"]
[Date "2024.06.01"]
[Round "4.34"]
[White "Albayrak, Berrak"]
[Black "Kramer, Helga"]
[Result "1-0"]
[ECO "B01"]
[WhiteElo "1850"]
[BlackElo "2092"]
[Annotator "NA RC"]
[PlyCount "81"]
[EventDate "2024.05.30"]
[EventType "team-tourn"]
[EventCountry "GER"]
[SourceTitle "playchess.com"]
[Source "ChessBase"]
[SourceQuality "1"]
[TimeControl "40/5400+30:1800+30"]

1. e4 {[%emt 0:00:03]} d5 {[%emt 0:00:11]} 2. exd5 {[%emt 0:00:08]} Qxd5 {[%emt 0:00:07]} 3. Nc3 {[%emt 0:00:17]} Qd6 {[%emt 0:00:23]} 4. g3 {[%emt 0:11:24]} e5 {[%emt 0:05:41]} 5. Bg2 {[%emt 0:00:57]} Nf6 {[%emt 0:02:28]} 6. d3 {[%emt 0:07:21] B01: Scandinavian Defence.} a6 {[%emt 0:04:14]} 7. Nge2 {[%emt 0:02:44]} Nc6 {[%emt 0:08:37]} 8. h3 {[%emt 0:14:27]} Bf5 {[%emt 0:05:24]} 9. O-O {[%emt 0:02:11]} (9. Be3 $11) 9... O-O-O {[%emt 0:04:18]} 10. Be3 {[%emt 0:04:38]} Nb4 {[%emt 0:04:05]} (10... Qd7 $17 11. Kh2 Be7) 11. a3 {[%emt 0:05:54]} Nbd5 {[%emt 0:01:22]} 12. Nxd5 {[%emt 0:01:26]} Nxd5 {[%emt 0:00:03]} 13. Bd2 {[%emt 0:00:27]} Qd7 {[%emt 0:04:10]} 14. Kh2 {[%emt 0:01:16]} h5 {[%emt 0:05:58]} 15. Nc3 {[%emt 0:06:38]} Nxc3 {[%emt 0:08:52]} 16. Bxc3 {[%emt 0:01:23]} f6 {[%emt 0:05:16]} 17. Qf3 {[%emt 0:05:23]} c6 {[%emt 0:02:02]} 18. Qe3 {[%emt 0:03:14]} Kb8 {[%emt 0:02:32]} 19. b4 {[%emt 0:03:56]} Bd6 {[%emt 0:03:43]} 20. Rfd1 {[%emt 0:10:42]} Rde8 {[%emt 0:05:02]} 21. a4 $1 {[%emt 0:04:29]} Re7 {[%emt 0:12:51]} ({Black should try} 21... h4 $15 22. g4 e4+ 23. Kh1 exd3) 22. b5 {[%emt 0:01:56]} cxb5 $2 {[%emt 0:01:21]} (22... h4 $16 23. g4 e4+ 24. Kh1 exd3) 23. axb5 {[%emt 0:01:06]} Qxb5 {[%emt 0:01:26]} 24. Rdb1 {[%emt 0:01:40]} Bc5 $2 {[%emt 0:01:52]} (24... Qc5) 25. Qf3 {[%emt 0:01:53]} Bg4 {[%emt 0:02:25]} 26. Qd5 $18 {[%emt 0:00:41]} (26. hxg4 $2 {loses.} hxg4+ 27. Kg1 gxf3 $19) 26... Be6 {[%emt 0:01:19]} 27. Rxb5 {[%emt 0:00:29]} Bxd5 {[%emt 0:00:44]} 28. Rxc5 {[%emt 0:00:07]} Bxg2 {[%emt 0:00:31]} 29. Kxg2 {[%emt 0:00:04]} b6 {[%emt 0:00:07]} 30. Rc4 {[%emt 0:01:42]} b5 {[%emt 0:00:23]} 31. Rc6 {[%emt 0:00:18]} Rc8 {[%emt 0:00:40]} 32. Rxc8+ {[%emt 0:03:11]} Kxc8 {[%emt 0:00:02]} 33. Rxa6 {[%emt 0:00:12]} Kb7 {[%emt 0:00:01]} 34. Ra2 {[%emt 0:00:30]} Rc7 {[%emt 0:00:44]} 35. Bb4 {[%emt 0:00:12]} Kc6 {[%emt 0:00:32]} 36. Ra6+ {[%emt 0:02:07]} Kb7 {[%emt 0:00:38]} 37. Ra2 {[%emt 0:00:06]} Kc6 {[%emt 0:00:21]} 38. c3 {[%emt 0:00:24]} Rd7 {[%emt 0:00:17]} 39. Ra6+ {[%emt 0:00:37]} Kb7 {[%emt 0:00:38]} 40. Rd6 {[%emt 0:00:10]} Rc7 {[%emt 0:04:26]} 41. Re6 {[%emt 0:30:48]} 1-0

[Event "DFMMLV 2024"]
[Site "Braunfels"]
[Date "2024.06.01"]
[Round "4.36"]
[White "Ankerst, Milka"]
[Black "Aden, Dagmar"]
[Result "1/2-1/2"]
[ECO "B92"]
[WhiteElo "1954"]
[BlackElo "1875"]
[Annotator "NA RC"]
[PlyCount "136"]
[EventDate "2024.05.30"]
[EventType "team-tourn"]
[EventCountry "GER"]
[SourceTitle "playchess.com"]
[Source "ChessBase"]
[SourceQuality "1"]
[TimeControl "40/5400+30:1800+30"]

1. e4 {[%emt 0:00:06]} c5 {[%emt 0:00:09]} 2. d4 {[%emt 0:00:23]} cxd4 {[%emt 0:00:16]} 3. Nf3 {[%emt 0:00:29]} d6 {[%emt 0:01:06]} 4. Nxd4 {[%emt 0:00:31]} Nf6 {[%emt 0:00:28]} 5. Nc3 {[%emt 0:00:34]} a6 {[%emt 0:00:31]} 6. Be3 {[%emt 0:06:20]} Ng4 {[%emt 0:01:45]} 7. Bc1 {[%emt 0:03:35]} Nf6 {[%emt 0:04:02]} 8. Be2 {[%emt 0:02:37]} e5 {[%emt 0:01:49]} 9. Nb3 {[%emt 0:01:10]} Be6 {[%emt 0:01:44]} 10. Be3 {[%emt 0:07:58]} Be7 {[%emt 0:11:22]} 11. O-O {[%emt 0:01:27] 11.a4 is a critical line.} Nc6 {[%emt 0:03:07] B92: Sicilian Najdorf: 6 Be2.} 12. f3 {[%emt 0:05:22]} d5 {[%emt 0:06:06]} 13. exd5 {[%emt 0:00:55]} Nxd5 {[%emt 0:00:11]} 14. Nxd5 {[%emt 0:00:50]} Bxd5 {[%emt 0:00:10]} 15. Qe1 $146 {[%emt 0:02:59]} ({Predecessor:} 15. c3 $14 O-O 16. Qe1 Bxb3 17. axb3 Qc7 18. Qf2 b5 19. b4 f5 20. Rfd1 f4 21. Bc5 Bxc5 22. Qxc5 Qa7 23. Qxa7 Rxa7 {1-0 Moller,A (1893)-Pawlak,W (1617) Koge Lang Sommer Weekend 2020 (5)}) 15... Qc7 {[%emt 0:04:47]} (15... Nb4 $11 16. Rc1 O-O) 16. c3 {[%emt 0:02:05]} O-O {[%emt 0:02:32]} 17. Qf2 {[%emt 0:04:30]} b5 {[%emt 0:03:46]} 18. Rad1 {[%emt 0:09:14]} Bxb3 {[%emt 0:03:43]} 19. axb3 {[%emt 0:00:18]} Rab8 {[%emt 0:00:46]} 20. b4 {[%emt 0:02:15]} a5 {[%emt 0:03:57]} 21. bxa5 {[%emt 0:04:44]} Nxa5 {[%emt 0:00:30]} 22. Qg3 {[%emt 0:11:18]} Nc4 {[%emt 0:06:58]} 23. Bxc4 {[%emt 0:04:36]} bxc4 {[%emt 0:00:25]} 24. Bc1 {[%emt 0:00:41]} Rfd8 {[%emt 0:09:08]} 25. Rde1 {[%emt 0:01:21]} Bf6 {[%emt 0:05:31]} 26. Re4 {[%emt 0:01:49]} Rd3 {[%emt 0:03:56]} 27. h4 {[%emt 0:06:19]} h5 {[%emt 0:02:22]} 28. Kh2 {[%emt 0:02:57]} Qc6 {[%emt 0:03:40]} 29. Qe1 {[%emt 0:00:44]} Rbd8 {[%emt 0:01:19]} ({Black should play} 29... Be7 $15) 30. Qe2 {[%emt 0:00:36]} Qd5 {[%emt 0:02:07]} (30... Be7 $15) 31. Bg5 {[%emt 0:04:48]} Bxg5 {[%emt 0:01:13]} 32. hxg5 {[%emt 0:00:03]} Rd2 {[%emt 0:01:11]} 33. Qxc4 {[%emt 0:00:51]} Qxc4 {[%emt 0:00:22]} 34. Rxc4 {[%emt 0:00:02]} Rxb2 {[%emt 0:00:10]} 35. Kh3 {[%emt 0:01:33]} (35. Re4 $11) 35... Rdd2 {[%emt 0:01:33]} 36. Rg1 {[%emt 0:00:32]} g6 $11 {[%emt 0:01:30]} (36... Re2 $15) 37. Rc8+ {[%emt 0:01:12]} Kg7 {[%emt 0:00:17]} 38. c4 {[%emt 0:04:58]} Rbc2 {[%emt 0:01:23]} 39. c5 {[%emt 0:04:24]} Re2 {[%emt 0:06:30]} 40. c6 {[%emt 0:01:50]} Red2 {[%emt 0:05:05]} 41. Re1 {[%emt 0:02:07]} Rxg2 {[%emt 0:05:26]} 42. Rxe5 {[%emt 0:00:13]} Rh2+ {[%emt 0:02:43]} 43. Kg3 {[%emt 0:00:14]} Rhg2+ {[%emt 0:02:51]} 44. Kf4 {[%emt 0:01:37]} Rc4+ {[%emt 0:00:49]} 45. Ke3 {[%emt 0:00:22]} Rcc2 {[%emt 0:01:44]} 46. Rd5 {[%emt 0:08:28]} Rc3+ {[%emt 0:03:41]} 47. Ke4 {[%emt 0:05:15]} Rc4+ {[%emt 0:01:45]} 48. Kd3 {[%emt 0:01:47]} Rcc2 {[%emt 0:00:36]} 49. Ke3 {[%emt 0:00:34]} Rc3+ {[%emt 0:00:31]} 50. Kd4 {[%emt 0:02:44]} Rcc2 {[%emt 0:00:30]} 51. c7 {[%emt 0:00:27]} Rgd2+ {[%emt 0:06:11]} 52. Ke5 {[%emt 0:00:30]} Re2+ {[%emt 0:00:54]} 53. Kd6 {[%emt 0:00:46]} Re6+ {[%emt 0:00:29]} 54. Kd7 {[%emt 0:00:17]} Rec6 {[%emt 0:00:55]} 55. Kd8 {[%emt 0:03:07]} Kf8 {[%emt 0:02:31]} 56. Kd7+ {[%emt 0:00:28]} Kg7 {[%emt 0:00:15]} 57. Re5 {[%emt 0:02:57]} R6c3 {[%emt 0:01:34]} 58. Rd5 {[%emt 0:01:56]} Rc1 {[%emt 0:01:41]} 59. Rd4 {[%emt 0:03:45]} R3c2 {[%emt 0:01:07]} 60. Kd8 {[%emt 0:00:38]} Kf8 {[%emt 0:01:29]} 61. Kd7+ {[%emt 0:00:11]} Kg7 {[%emt 0:00:09]} 62. Rf4 {[%emt 0:00:39]} Rd2+ {[%emt 0:01:01]} 63. Ke7 {[%emt 0:00:07]} Re2+ {[%emt 0:00:31]} 64. Re4 {[%emt 0:00:27]} Rec2 {[%emt 0:00:14]} 65. Kd6 {[%emt 0:00:32]} Rd2+ {[%emt 0:00:28]} 66. Ke5 {[%emt 0:00:28]} Rdc2 {[%emt 0:00:20]} 67. Kd6 {[%emt 0:00:07]} Rd2+ {[%emt 0:00:06]} 68. Ke7 {[%emt 0:00:46]} Rdc2 {[%emt 0:00:13]} 1/2-1/2

[Event "DFMMLV 2024"]
[Site "Braunfels"]
[Date "2024.06.01"]
[Round "4.37"]
[White "Hielscher, Ursula"]
[Black "Reich, Elisabeth"]
[Result "0-1"]
[ECO "A83"]
[WhiteElo "1829"]
[BlackElo "1797"]
[Annotator "NA RC"]
[PlyCount "58"]
[EventDate "2024.05.30"]
[EventType "team-tourn"]
[EventCountry "GER"]
[SourceTitle "playchess.com"]
[Source "ChessBase"]
[SourceQuality "1"]
[TimeControl "40/5400+30:1800+30"]

1. d4 {[%emt 0:00:04]} f5 {[%emt 0:00:04]} 2. e4 {[%emt 0:00:15]} fxe4 {[%emt 0:00:05]} 3. Nc3 {[%emt 0:00:04]} Nf6 {[%emt 0:00:07]} 4. Bg5 {[%emt 0:00:02]} g6 {[%emt 0:00:07]} 5. Bxf6 {[%emt 0:00:30]} exf6 {[%emt 0:00:10]} 6. Nxe4 {[%emt 0:00:11]} d5 {[%emt 0:00:46]} 7. Nc3 {[%emt 0:01:17]} Bb4 {[%emt 0:01:09]} 8. Qe2+ {[%emt 0:01:02]} Kf7 {[%emt 0:00:40]} 9. O-O-O {[%emt 0:02:31]} Bxc3 {[%emt 0:00:16]} 10. bxc3 {[%emt 0:00:08]} Re8 {[%emt 0:00:17]} 11. Qb5 {[%emt 0:01:57]} c6 {[%emt 0:01:27]} 12. Qb3 {[%emt 0:00:39]} Qc7 {[%emt 0:01:56]} 13. c4 {[%emt 0:02:58]} Be6 {[%emt 0:00:46]} 14. Qg3 {[%emt 0:07:22]} Qa5 {[%emt 0:04:06]} 15. Qb3 {[%emt 0:02:18]} Re7 {[%emt 0:01:00]} 16. Bd3 {[%emt 0:02:23]} Na6 {[%emt 0:01:35]} 17. c3 {[%emt 0:08:14]} Rb8 {[%emt 0:04:05]} 18. Ne2 {[%emt 0:03:39]} dxc4 {[%emt 0:10:12]} 19. Bxc4 {[%emt 0:01:40]} Bxc4 {[%emt 0:02:38]} 20. Qxc4+ {[%emt 0:00:04]} Kg7 {[%emt 0:00:29]} 21. Nf4 {[%emt 0:12:38]} Rbe8 {[%emt 0:00:51]} 22. h4 {[%emt 0:04:12]} b5 {[%emt 0:01:40]} 23. Qb3 {[%emt 0:02:13]} c5 {[%emt 0:03:52]} 24. d5 {[%emt 0:03:54]} c4 {[%emt 0:01:01]} 25. Qc2 {[%emt 0:00:25]} b4 {[%emt 0:02:57]} 26. Ne6+ {[%emt 0:03:08]} Kg8 {[%emt 0:03:21]} 27. Rd4 {[%emt 0:14:38]} bxc3 {[%emt 0:06:30]} 28. Kd1 {[%emt 0:01:46]} Rb8 {[%emt 0:09:23]} 29. Qe4 {[%emt 0:07:45]} Qxa2 {[%emt 0:04:57]} 0-1